fUSD/lending_fUSD_20260530
["ID","MTS","AMOUNT","RATE_DAILY","PERIOD"]
[423470050,1780149043000,-2121.28711139,0.00014525,2]
[423470053,1780149043000,-150.0,0.00014558,2]
[423470051,1780149043000,-150.0,0.00014525,2]
[423470055,1780149043000,-150.0,0.00014558,2]
[423470014,1780149043000,-200.0,0.00014406,2]
[423470033,1780149043000,-2351.0,0.00014444,2]
[423470015,1780149043000,-150.0,0.0001441,2]
[423470001,1780149043000,-159.5356824,0.0001437,2]
[423470016,1780149043000,-150.0,0.00014415,2]
[423470054,1780149043000,-150.0,0.00014558,2]
[423469986,1780149043000,-150.0,0.00014331,2]
[423469987,1780149043000,-150.0,0.00014344,2]
[423469990,1780149043000,-486.62,0.00014346,2]
[423469989,1780149043000,-150.0,0.00014344,2]
[423469991,1780149043000,-1148.97,0.00014348,2]
[423469988,1780149043000,-150.0,0.00014344,2]
[423469992,1780149043000,-150.0,0.00014352,2]
[423469993,1780149043000,-150.0,0.00014355,2]
[423469994,1780149043000,-366.259,0.00014356,2]
[423469996,1780149043000,-150.0,0.00014362,2]
[423469995,1780149043000,-4827.142,0.00014356,2]
[423470018,1780149043000,-333.0,0.00014421,2]
[423470009,1780149043000,-150.0,0.00014377,2]
[423470000,1780149043000,-3311.0201054,0.0001437,2]
[423469998,1780149043000,-324.41,0.00014367,2]
[423470002,1780149043000,-2621.4301242,0.0001437,2]
[423470004,1780149043000,-5597.0087935,0.0001437,2]
[423470008,1780149043000,-3303.1007971,0.0001437,2]
[423470006,1780149043000,-198753.5126672,0.0001437,2]
[423470005,1780149043000,-151.6585161,0.0001437,2]
[423470010,1780149043000,-150.0,0.0001438,2]
[423470012,1780149043000,-150.0,0.00014398,2]
[423470011,1780149043000,-166.66,0.00014384,2]
[423470013,1780149043000,-1000.0,0.00014406,2]
[423470017,1780149043000,-150.0,0.00014415,2]
[423470003,1780149043000,-7545.8326437,0.0001437,2]
[423470052,1780149043000,-150.0,0.0001454,2]
[423470093,1780149043000,-150.0,0.00014705,2]
[423470056,1780149043000,-350.0,0.00014562,2]
[423470086,1780149043000,-445.43026773,0.00014695,2]
[423470085,1780149043000,-150.0,0.00014683,2]
[423470089,1780149043000,-10425.96797005,0.000147,2]
[423470091,1780149043000,-150.0,0.00014701,2]
[423470090,1780149043000,-2200.0,0.000147,5]
[423470115,1780149043000,-150.0,0.00014752,2]
[423470095,1780149043000,-150.0,0.00014714,2]
[423470094,1780149043000,-689.38,0.00014711,2]
[423470097,1780149043000,-433.0,0.0001472,2]
[423470096,1780149043000,-150.0,0.00014719,2]
[423470092,1780149043000,-150.0,0.00014701,2]
[423470099,1780149043000,-1584.63,0.00014722,2]
[423470084,1780149043000,-1590.0,0.0001468,2]
[423470100,1780149043000,-1584.63,0.00014724,2]
[423470101,1780149043000,-1407.0,0.00014734,2]
[423470102,1780149043000,-1584.63,0.00014734,2]
[423470104,1780149043000,-150.0,0.00014737,2]
[423470114,1780149043000,-150.0,0.0001475,2]
[423470111,1780149043000,-151.0,0.00014744,2]
[423470110,1780149043000,-4687.320992,0.00014744,2]
[423470107,1780149043000,-4687.320992,0.00014744,2]
[423470108,1780149043000,-4687.320992,0.00014744,2]
[423470113,1780149043000,-7837.61877608,0.00014744,2]
[423470109,1780149043000,-4687.320992,0.00014744,2]
[423470112,1780149043000,-17912.28330262,0.00014744,2]
[423470049,1780149043000,-150.0,0.00014522,2]
[423470098,1780149043000,-1584.63,0.00014722,2]
[423470083,1780149043000,-2318.0,0.0001468,2]
[423470106,1780149043000,-152.68221,0.00014744,2]
[423470087,1780149043000,-150.0,0.00014698,2]
[423470088,1780149043000,-4706.76752248,0.000147,2]
[423470058,1780149043000,-150.0,0.00014576,2]
[423470057,1780149043000,-150.0,0.00014565,2]
[423470060,1780149043000,-1545.0,0.00014581,2]
[423470063,1780149043000,-150.0,0.00014583,2]
[423470062,1780149043000,-156.2014279,0.00014581,2]
[423470064,1780149043000,-575.78,0.00014588,2]
[423470061,1780149043000,-1545.0,0.00014581,2]
[423470065,1780149043000,-500.0,0.00014588,2]
[423470067,1780149043000,-500.0,0.00014588,2]
[423470066,1780149043000,-3453.62,0.00014588,2]
[423470069,1780149043000,-7837.61877608,0.00014589,2]
[423470072,1780149043000,-2200.0,0.000146,5]
[423470059,1780149043000,-150.0,0.00014578,2]
[423470071,1780149043000,-150.0,0.00014594,2]
[423470070,1780149043000,-150.0,0.00014592,2]
[423470080,1780149043000,-150.0,0.00014665,2]
[423470078,1780149043000,-150.0,0.00014647,2]
[423470079,1780149043000,-150.0,0.00014658,2]
[423470075,1780149043000,-150.0,0.00014629,2]
[423470081,1780149043000,-420.52977603,0.00014667,2]
[423470077,1780149043000,-150.0,0.0001464,2]
[423470068,1780149043000,-17912.28330262,0.00014589,2]
[423470073,1780149043000,-150.0,0.00014612,2]
[423470076,1780149043000,-150.0,0.00014629,2]
[423470082,1780149043000,-150.0,0.00014671,2]
[423470074,1780149043000,-150.0,0.00014612,2]
[423470154,1780149044000,-200.0,0.00014879,2]
[423470158,1780149044000,-150.0,0.00014893,2]
[423470157,1780149044000,-163.0,0.0001488,2]
[423470155,1780149044000,-150.0,0.00014879,2]
[423470156,1780149044000,-163.0,0.0001488,2]
[423470152,1780149044000,-150.0,0.00014871,2]
[423470159,1780149044000,-150.0,0.00014897,2]
[423470160,1780149044000,-500.0,0.00014899,2]
[423470165,1780149044000,-17912.28330262,0.000149,2]
[423470170,1780149044000,-2121.28711139,0.000149,2]
[423470153,1780149044000,-499.0,0.00014877,2]
[423470163,1780149044000,-420.52977603,0.000149,2]
[423470161,1780149044000,-23874.21827184,0.000149,3]
[423470162,1780149044000,-10000.0,0.000149,2]
[423470164,1780149044000,-25000.0,0.000149,3]
[423470166,1780149044000,-24007.70704433,0.000149,3]
[423470167,1780149044000,-2200.0,0.000149,5]
[423470168,1780149044000,-4706.76752248,0.000149,2]
[423470172,1780149044000,-150.0,0.00014907,2]
[423470171,1780149044000,-7837.61877608,0.000149,2]
[423470150,1780149044000,-1666.66667,0.0001486,2]
[423470175,1780149044000,-250.0,0.00014925,2]
[423470169,1780149044000,-247.08003944,0.000149,2]
[423470151,1780149044000,-150.0,0.00014861,2]
[423470130,1780149044000,-150.0,0.00014808,2]
[423470146,1780149044000,-1666.66667,0.0001485,2]
[423470179,1780149044000,-150.0,0.00014939,2]
[423470116,1780149044000,-1584.63,0.00014752,2]
[423470128,1780149044000,-150.0,0.00014799,2]
[423470117,1780149044000,-1584.63,0.00014752,2]
[423470119,1780149044000,-150.0,0.00014754,2]
[423470121,1780149044000,-150.0,0.00014756,2]
[423470123,1780149044000,-494.37,0.00014771,2]
[423470124,1780149044000,-150.0,0.00014772,2]
[423470127,1780149044000,-150.0,0.0001479,2]
[423470126,1780149044000,-150.0,0.00014772,2]
[423470148,1780149044000,-150.0,0.0001485,2]
[423470129,1780149044000,-2200.0,0.000148,5]
[423470134,1780149044000,-469.51011846,0.00014826,2]
[423470136,1780149044000,-150.0,0.00014829,2]
[423470132,1780149044000,-150.0,0.00014826,2]
[423470142,1780149044000,-3743.12247816,0.0001485,2]
[423470137,1780149044000,-150.0,0.00014844,2]
[423470141,1780149044000,-350.0,0.00014846,2]
[423470140,1780149044000,-150.0,0.00014846,2]
[423470138,1780149044000,-150.0,0.00014844,2]
[423470139,1780149044000,-598.04,0.00014844,2]
[423470144,1780149044000,-1666.66666,0.0001485,2]
[423470131,1780149044000,-150.0,0.00014813,2]
[423470176,1780149044000,-400.0,0.00014925,2]
[423470125,1780149044000,-150.0,0.00014772,2]
[423470173,1780149044000,-150.0,0.00014915,2]
[423470201,1780149044000,-575.78,0.00014999,2]
[423470203,1780149044000,-500.0,0.00014999,2]
[423470202,1780149044000,-575.85275073,0.00014999,2]
[423470208,1780149044000,-500.0,0.00014999,2]
[423470207,1780149044000,-500.0,0.00014999,2]
[423470213,1780149044000,-3453.62,0.00014999,2]
[423470212,1780149044000,-3453.62,0.00014999,2]
[423470211,1780149044000,-3453.62,0.00014999,2]
[423470217,1780149044000,-3453.62,0.00014999,2]
[423470216,1780149044000,-3453.62,0.00014999,2]
[423470200,1780149044000,-575.78,0.00014999,2]
[423470210,1780149044000,-3453.62,0.00014999,2]
[423470209,1780149044000,-514.95046541,0.00014999,2]
[423470215,1780149044000,-3453.62,0.00014999,2]
[423470218,1780149044000,-3453.62,0.00014999,2]
[423470219,1780149044000,-3453.62,0.00014999,2]
[423470220,1780149044000,-3453.71194445,0.00014999,2]
[423470221,1780149044000,-500.0,0.00014999,2]
[423470223,1780149044000,-500.0,0.00014999,2]
[423470222,1780149044000,-500.0,0.00014999,2]
[423470226,1780149044000,-210239.43324618,0.00015,2]
[423470224,1780149044000,-500.0,0.00014999,2]
[423470214,1780149044000,-3453.62,0.00014999,2]
[423470204,1780149044000,-500.0,0.00014999,2]
[423470225,1780149044000,-395.14050061,0.00014999,2]
[423470199,1780149044000,-575.78,0.00014999,2]
[423470198,1780149044000,-575.78,0.00014999,2]
[423470174,1780149044000,-150.0,0.00014915,2]
[423470178,1780149044000,-150.0,0.00014933,2]
[423470181,1780149044000,-150.0,0.00014968,2]
[423470180,1780149044000,-150.0,0.00014951,2]
[423470182,1780149044000,-252.78034352,0.00014986,2]
[423470183,1780149044000,-228.69569303,0.00014986,2]
[423470184,1780149044000,-150.68679634,0.00014986,2]
[423470186,1780149044000,-181.56728379,0.00014986,2]
[423470190,1780149044000,-246.45782846,0.00014986,2]
[423470187,1780149044000,-153.71874188,0.00014986,2]
[423470177,1780149044000,-150.0,0.00014929,2]
[423470194,1780149044000,-575.78,0.00014999,2]
[423470197,1780149044000,-575.78,0.00014999,2]
[423470185,1780149044000,-221.84294858,0.00014986,2]
[423470205,1780149044000,-498.4,0.00014999,2]
[423470195,1780149044000,-575.78,0.00014999,2]
[423470196,1780149044000,-575.78,0.00014999,2]
[423470206,1780149044000,-500.0,0.00014999,2]
[423470193,1780149044000,-575.78,0.00014999,2]
[423470191,1780149044000,-151.0,0.00014997,2]
[423470189,1780149044000,-263.66420644,0.00014986,2]
[423470188,1780149044000,-291.70043947,0.00014986,2]
[423470192,1780149044000,-575.78,0.00014999,2]
[423470230,1780149045000,-5118.8234575,0.00015,2]
[423470229,1780149045000,-2488.11649926,0.00015,2]
[423470242,1780149046000,-608.4329976,0.00015,2]
[423470231,1780149046000,-695.6995,0.00015,2]
[423470240,1780149046000,-448.674,0.00015,2]
[423470241,1780149046000,-644.20590704,0.00015,2]
[423470245,1780149046000,-73120.0,0.00015,2]
[423470234,1780149046000,-808.55672583,0.00015,2]
[423470244,1780149046000,-603.27641542,0.00015,2]
[423470246,1780149046000,-3304.19561816,0.00015,2]
[423470247,1780149046000,-3216.10554721,0.00014143,2]
[423470248,1780149046000,-421.89445279,0.00014143,2]
[423470249,1780149046000,-1965.07825469,0.00015,2]
[423470243,1780149046000,-7283.988338,0.00015,2]
[423470252,1780149047000,-2709.06750192,0.00015,2]
[423470251,1780149047000,-10159.07002766,0.00015,2]
[423470253,1780149047000,-332.818322,0.00015,2]
[423470250,1780149047000,-373.17085578,0.0001427,2]
[423470269,1780149605000,391.59,0.00027514,120]
[423470301,1780150112000,330.76,0.0002802,120]
[423470302,1780150141000,1000.0,0.00028079,120]
[423470304,1780150227000,203.9,0.00028082,120]
[423470330,1780150232000,-150.9,0.00012119,2]
[423470328,1780150232000,-2000.0,0.00012091,2]
[423470332,1780150232000,-150.9,0.00012278,2]
[423470329,1780150232000,-375.88,0.00012109,2]
[423470327,1780150232000,-784.16,0.00012063,2]
[423470334,1780150232000,-375.88,0.00012404,2]
[423470326,1780150232000,-1000.0,0.00011955,2]
[423470325,1780150232000,-3718.75,0.00011943,2]
[423470324,1780150232000,-215.58360558,0.00011925,2]
[423470323,1780150232000,-1257.46,0.0001192,2]
[423470321,1780150232000,-399.58768772,0.00011895,2]
[423470322,1780150232000,-4119.72,0.00011897,2]
[423470320,1780150232000,-500.0,0.00011895,2]
[423470319,1780150232000,-500.0,0.00011895,2]
[423470318,1780150232000,-448.86779017,0.00011894,2]
[423470317,1780150232000,-751.13220983,0.00011894,2]
[423470314,1780150232000,-250.0,0.00011868,2]
[423470333,1780150232000,-150.0,0.00012309,2]
[423470312,1780150232000,-250.0,0.00011839,2]
[423470313,1780150232000,-200.0,0.00011852,2]
[423470310,1780150232000,-1852.42,0.00011825,2]
[423470311,1780150232000,-500.0,0.00011825,2]
[423470308,1780150232000,-174.06681493,0.00011813,2]
[423470309,1780150232000,-201.81318507,0.00011813,2]
[423470307,1780150232000,-500.0,0.00011742,2]
[423470316,1780150232000,-1977.15318507,0.00011875,2]
[423470315,1780150232000,-749.38681493,0.00011875,2]
[423470336,1780150232000,-150.9,0.00012597,2]
[423470335,1780150232000,-150.9,0.00012438,2]
[423470331,1780150232000,-167.85,0.00012186,2]
[423470365,1780150232000,-932.0893345,0.00013373,2]
[423470364,1780150232000,-380.68182096,0.00013373,2]
[423470362,1780150232000,-500.0,0.00013295,2]
[423470363,1780150232000,-929.69009103,0.00013373,2]
[423470357,1780150232000,-154.66134378,0.00013295,2]
[423470359,1780150232000,-10655.7282174,0.00013295,2]
[423470358,1780150232000,-7053.85689849,0.00013295,2]
[423470355,1780150232000,-749.84646836,0.00013285,2]
[423470361,1780150232000,-4706.76752254,0.00013295,2]
[423470360,1780150232000,-6726.17189333,0.00013295,2]
[423470353,1780150232000,-212.09726438,0.00013188,2]
[423470354,1780150232000,-150.9,0.00013235,2]
[423470356,1780150232000,-2500.0,0.00013288,2]
[423470352,1780150232000,-1680.0,0.00013083,2]
[423470341,1780150232000,-2200.0,0.000129,4]
[423470345,1780150232000,-150.34873257,0.00012979,2]
[423470343,1780150232000,-150.9,0.00012916,2]
[423470346,1780150232000,-375.88,0.00012995,2]
[423470339,1780150232000,-150.0,0.00012825,2]
[423470350,1780150232000,-2900.0,0.00013082,2]
[423470337,1780150232000,-375.88,0.00012699,2]
[423470348,1780150232000,-150.9,0.00013076,2]
[423470349,1780150232000,-500.0,0.00013082,2]
[423470347,1780150232000,-250.0,0.00013007,2]
[423470338,1780150232000,-150.9,0.00012757,2]
[423470351,1780150232000,-800.0,0.00013082,2]
[423470376,1780150238000,-160.0,0.00013124,2]
[423470377,1780150238000,-2757.53875351,0.00013373,2]
[423470378,1780150238000,-151.0,0.00013385,2]
[423470379,1780150238000,-150.9,0.00013395,2]
[423470385,1780150238000,-500.0,0.00013424,2]
[423470384,1780150238000,-500.0,0.00013424,2]
[423470380,1780150238000,-1590.0,0.000134,2]
[423470381,1780150238000,-2318.0,0.000134,2]
[423470382,1780150238000,-500.0,0.00013424,2]
[423470429,1780150239000,-7053.85689847,0.00013652,2]
[423470427,1780150239000,-150.0,0.00013643,2]
[423470428,1780150239000,-150.0,0.00013645,2]
[423470425,1780150239000,-150.0,0.00013638,2]
[423470426,1780150239000,-150.0,0.00013643,2]
[423470422,1780150239000,-167.18,0.00013608,2]
[423470423,1780150239000,-150.0,0.00013613,2]
[423470418,1780150239000,-250.0,0.00013599,2]
[423470419,1780150239000,-500.0,0.00013599,2]
[423470420,1780150239000,-2000.0,0.00013603,2]
[423470421,1780150239000,-150.0,0.00013604,2]
[423470424,1780150239000,-150.0,0.00013624,2]
[423470430,1780150239000,-17381.90011064,0.00013652,2]
[423470417,1780150239000,-150.0,0.00013591,2]
[423470433,1780150239000,-150.0,0.00013675,2]
[423470432,1780150239000,-150.0,0.00013664,2]
[423470437,1780150239000,-500.0,0.00013698,2]
[423470436,1780150239000,-500.0,0.00013698,2]
[423470434,1780150239000,-150.0,0.00013682,2]
[423470435,1780150239000,-150.0,0.00013694,2]
[423470438,1780150239000,-500.0,0.00013698,2]
[423470439,1780150239000,-500.0,0.00013698,2]
[423470441,1780150239000,-500.0,0.00013698,2]
[423470442,1780150239000,-500.0,0.00013698,2]
[423470449,1780150239000,-500.0,0.00013698,2]
[423470443,1780150239000,-500.0,0.00013698,2]
[423470440,1780150239000,-500.0,0.00013698,2]
[423470431,1780150239000,-150.0,0.00013663,2]
[423470415,1780150239000,-150.0,0.00013576,2]
[423470397,1780150239000,-150.0,0.00013488,2]
[423470413,1780150239000,-400.0,0.00013571,2]
[423470448,1780150239000,-500.0,0.00013698,2]
[423470387,1780150239000,-307.75094275,0.00013424,2]
[423470386,1780150239000,-150.0,0.00013424,2]
[423470389,1780150239000,-150.0,0.00013424,2]
[423470390,1780150239000,-150.0,0.00013424,2]
[423470388,1780150239000,-150.0,0.00013424,2]
[423470391,1780150239000,-150.0,0.00013424,2]
[423470393,1780150239000,-7053.85689847,0.00013473,2]
[423470392,1780150239000,-250.0,0.00013424,2]
[423470394,1780150239000,-17381.90011064,0.00013473,2]
[423470396,1780150239000,-150.0,0.00013488,2]
[423470395,1780150239000,-150.0,0.00013488,2]
[423470398,1780150239000,-150.0,0.00013488,2]
[423470416,1780150239000,-150.0,0.00013585,2]
[423470399,1780150239000,-150.0,0.00013488,2]
[423470401,1780150239000,-150.0,0.00013488,2]
[423470402,1780150239000,-150.0,0.00013488,2]
[423470403,1780150239000,-150.0,0.00013488,2]
[423470404,1780150239000,-2000.0,0.00013499,2]
[423470409,1780150239000,-150.0,0.00013546,2]
[423470408,1780150239000,-150.0,0.00013539,2]
[423470412,1780150239000,-150.0,0.00013567,2]
[423470407,1780150239000,-150.0,0.00013527,2]
[423470406,1780150239000,-4706.76752248,0.00013524,2]
[423470405,1780150239000,-150.0,0.00013507,2]
[423470411,1780150239000,-150.0,0.00013566,2]
[423470410,1780150239000,-150.0,0.0001355,2]
[423470414,1780150239000,-784.16,0.00013571,2]
[423470400,1780150239000,-150.0,0.00013488,2]
[423470444,1780150239000,-500.0,0.00013698,2]
[423470482,1780150239000,-500.0,0.00013698,2]
[423470445,1780150239000,-500.0,0.00013698,2]
[423470485,1780150239000,-500.0,0.00013698,2]
[423470508,1780150239000,-500.0,0.00013698,2]
[423470483,1780150239000,-500.0,0.00013698,2]
[423470480,1780150239000,-500.0,0.00013698,2]
[423470486,1780150239000,-500.0,0.00013698,2]
[423470481,1780150239000,-500.0,0.00013698,2]
[423470484,1780150239000,-500.0,0.00013698,2]
[423470488,1780150239000,-420.45070713,0.00013698,2]
[423470487,1780150239000,-500.0,0.00013698,2]
[423470489,1780150239000,-500.0,0.00013698,2]
[423470491,1780150239000,-500.0,0.00013698,2]
[423470492,1780150239000,-500.0,0.00013698,2]
[423470490,1780150239000,-500.0,0.00013698,2]
[423470493,1780150239000,-500.0,0.00013698,2]
[423470495,1780150239000,-500.0,0.00013698,2]
[423470494,1780150239000,-500.0,0.00013698,2]
[423470497,1780150239000,-500.0,0.00013698,2]
[423470496,1780150239000,-500.0,0.00013698,2]
[423470498,1780150239000,-500.0,0.00013698,2]
[423470500,1780150239000,-500.0,0.00013698,2]
[423470499,1780150239000,-500.0,0.00013698,2]
[423470502,1780150239000,-500.0,0.00013698,2]
[423470501,1780150239000,-500.0,0.00013698,2]
[423470504,1780150239000,-500.0,0.00013698,2]
[423470505,1780150239000,-500.0,0.00013698,2]
[423470506,1780150239000,-161.53446073,0.00013698,2]
[423470507,1780150239000,-500.0,0.00013698,2]
[423470478,1780150239000,-500.0,0.00013698,2]
[423470476,1780150239000,-500.0,0.00013698,2]
[423470503,1780150239000,-500.0,0.00013698,2]
[423470477,1780150239000,-266.90977676,0.00013698,2]
[423470479,1780150239000,-500.0,0.00013698,2]
[423470447,1780150239000,-500.0,0.00013698,2]
[423470451,1780150239000,-500.0,0.00013698,2]
[423470450,1780150239000,-500.0,0.00013698,2]
[423470461,1780150239000,-500.0,0.00013698,2]
[423470452,1780150239000,-497.78987791,0.00013698,2]
[423470459,1780150239000,-500.0,0.00013698,2]
[423470457,1780150239000,-500.0,0.00013698,2]
[423470458,1780150239000,-500.0,0.00013698,2]
[423470453,1780150239000,-500.0,0.00013698,2]
[423470454,1780150239000,-500.0,0.00013698,2]
[423470455,1780150239000,-500.0,0.00013698,2]
[423470456,1780150239000,-512.05018733,0.00013698,2]
[423470460,1780150239000,-500.0,0.00013698,2]
[423470446,1780150239000,-500.0,0.00013698,2]
[423470463,1780150239000,-500.0,0.00013698,2]
[423470462,1780150239000,-500.0,0.00013698,2]
[423470475,1780150239000,-500.0,0.00013698,2]
[423470474,1780150239000,-500.0,0.00013698,2]
[423470470,1780150239000,-448.29,0.00013698,2]
[423470467,1780150239000,-500.0,0.00013698,2]
[423470472,1780150239000,-500.0,0.00013698,2]
[423470471,1780150239000,-500.0,0.00013698,2]
[423470469,1780150239000,-500.0,0.00013698,2]
[423470466,1780150239000,-500.0,0.00013698,2]
[423470468,1780150239000,-500.0,0.00013698,2]
[423470464,1780150239000,-500.0,0.00013698,2]
[423470465,1780150239000,-500.0,0.00013698,2]
[423470473,1780150239000,-500.0,0.00013698,2]
[423470552,1780150240000,-500.0,0.00013698,2]
[423470554,1780150240000,-500.0,0.00013698,2]
[423470553,1780150240000,-500.0,0.00013698,2]
[423470551,1780150240000,-245.97684644,0.00013698,2]
[423470545,1780150240000,-500.0,0.00013698,2]
[423470543,1780150240000,-410.30161227,0.00013698,2]
[423470544,1780150240000,-295.37631974,0.00013698,2]
[423470549,1780150240000,-500.0,0.00013698,2]
[423470547,1780150240000,-500.0,0.00013698,2]
[423470560,1780150240000,-500.0,0.00013698,2]
[423470550,1780150240000,-500.0,0.00013698,2]
[423470555,1780150240000,-500.0,0.00013698,2]
[423470558,1780150240000,-3453.62,0.00013698,2]
[423470556,1780150240000,-3453.62,0.00013698,2]
[423470557,1780150240000,-3453.62,0.00013698,2]
[423470562,1780150240000,-500.0,0.00013698,2]
[423470559,1780150240000,-3453.62,0.00013698,2]
[423470548,1780150240000,-500.0,0.00013698,2]
[423470563,1780150240000,-500.0,0.00013698,2]
[423470564,1780150240000,-200.0,0.00013699,2]
[423470566,1780150240000,-721.0,0.00013699,2]
[423470568,1780150240000,-6104.33,0.00013699,2]
[423470570,1780150240000,-151.0,0.00013699,2]
[423470576,1780150240000,-151.0,0.00013699,2]
[423470579,1780150240000,-151.0,0.00013699,2]
[423470574,1780150240000,-151.0,0.00013699,2]
[423470561,1780150240000,-500.0,0.00013698,2]
[423470546,1780150240000,-500.0,0.00013698,2]
[423470534,1780150240000,-500.0,0.00013698,2]
[423470541,1780150240000,-500.0,0.00013698,2]
[423470580,1780150240000,-151.0,0.00013699,2]
[423470510,1780150240000,-500.0,0.00013698,2]
[423470509,1780150240000,-500.0,0.00013698,2]
[423470511,1780150240000,-500.0,0.00013698,2]
[423470512,1780150240000,-500.0,0.00013698,2]
[423470513,1780150240000,-500.0,0.00013698,2]
[423470514,1780150240000,-500.0,0.00013698,2]
[423470519,1780150240000,-500.0,0.00013698,2]
[423470522,1780150240000,-500.0,0.00013698,2]
[423470515,1780150240000,-575.78,0.00013698,2]
[423470523,1780150240000,-509.66155533,0.00013698,2]
[423470520,1780150240000,-500.0,0.00013698,2]
[423470517,1780150240000,-575.78,0.00013698,2]
[423470516,1780150240000,-575.78,0.00013698,2]
[423470521,1780150240000,-500.0,0.00013698,2]
[423470518,1780150240000,-575.78,0.00013698,2]
[423470526,1780150240000,-500.0,0.00013698,2]
[423470530,1780150240000,-500.0,0.00013698,2]
[423470532,1780150240000,-500.0,0.00013698,2]
[423470528,1780150240000,-500.0,0.00013698,2]
[423470536,1780150240000,-500.0,0.00013698,2]
[423470533,1780150240000,-500.0,0.00013698,2]
[423470538,1780150240000,-500.0,0.00013698,2]
[423470535,1780150240000,-387.24040857,0.00013698,2]
[423470537,1780150240000,-500.0,0.00013698,2]
[423470540,1780150240000,-500.0,0.00013698,2]
[423470539,1780150240000,-500.0,0.00013698,2]
[423470542,1780150240000,-500.0,0.00013698,2]
[423470524,1780150240000,-500.0,0.00013698,2]
[423470583,1780150240000,-151.0,0.00013699,2]
[423470582,1780150240000,-151.0,0.00013699,2]
[423470615,1780150240000,-1462.0,0.00013699,2]
[423470621,1780150240000,-1462.0,0.00013699,2]
[423470613,1780150240000,-1462.0,0.00013699,2]
[423470617,1780150240000,-1462.0,0.00013699,2]
[423470616,1780150240000,-1462.0,0.00013699,2]
[423470619,1780150240000,-1462.0,0.00013699,2]
[423470618,1780150240000,-1462.0,0.00013699,2]
[423470622,1780150240000,-1462.0,0.00013699,2]
[423470624,1780150240000,-1462.0,0.00013699,2]
[423470623,1780150240000,-1462.0,0.00013699,2]
[423470625,1780150240000,-1462.0,0.00013699,2]
[423470629,1780150240000,-1462.0,0.00013699,2]
[423470620,1780150240000,-1462.0,0.00013699,2]
[423470627,1780150240000,-1462.0,0.00013699,2]
[423470632,1780150240000,-1462.0,0.00013699,2]
[423470631,1780150240000,-1462.0,0.00013699,2]
[423470628,1780150240000,-1462.0,0.00013699,2]
[423470634,1780150240000,-1462.0,0.00013699,2]
[423470633,1780150240000,-1462.0,0.00013699,2]
[423470635,1780150240000,-1468.82970576,0.00013699,2]
[423470636,1780150240000,-163.44,0.000137,2]
[423470639,1780150240000,-150.0,0.00013721,2]
[423470640,1780150240000,-150.0,0.00013724,2]
[423470638,1780150240000,-2318.0,0.0001372,2]
[423470637,1780150240000,-150.0,0.00013702,2]
[423470572,1780150240000,-151.0,0.00013699,2]
[423470630,1780150240000,-1462.0,0.00013699,2]
[423470611,1780150240000,-500.0,0.00013699,2]
[423470626,1780150240000,-1462.0,0.00013699,2]
[423470612,1780150240000,-1462.0,0.00013699,2]
[423470614,1780150240000,-1462.0,0.00013699,2]